[Event "*** Titled Tuesday Blitz"]
[Site "Chess.com"]
[Date "2021.03.30"]
[Round "5"]
[White "GelmanAlexander"]
[Black "Tpros"]
[Result "1-0"]
[WhiteElo "2637"]
[BlackElo "2458"]
[TimeControl "180+1"]
[EndTime "10:55:52 PDT"]
[Termination "GelmanAlexander won by checkmate"]

1. d4 {[%clk 0:03:00.9]} 1... Nf6 {[%clk 0:02:58.6]} 2. Nc3 {[%clk 0:03:00.9]}
2... d5 {[%clk 0:02:56]} 3. Bf4 {[%clk 0:03:00.8]} 3... Bf5 {[%clk 0:02:37.2]}
4. f3 {[%clk 0:03:00.7]} 4... h6 {[%clk 0:02:33.7]} 5. g4 {[%clk 0:02:59.9]}
5... Bg6 {[%clk 0:02:29.2]} 6. h4 {[%clk 0:03:00.2]} 6... e6 {[%clk 0:02:26.8]}
7. e3 {[%clk 0:02:59.9]} 7... a6 {[%clk 0:02:22.6]} 8. h5 {[%clk 0:02:41.4]}
8... Bh7 {[%clk 0:02:20]} 9. Bd3 {[%clk 0:02:36.7]} 9... c5 {[%clk 0:02:15.7]}
10. Bxh7 {[%clk 0:02:35.4]} 10... Nxh7 {[%clk 0:02:16.4]} 11. Nge2 {[%clk
0:02:24.3]} 11... Nc6 {[%clk 0:02:15.9]} 12. Qd2 {[%clk 0:02:23.9]} 12... Rc8
{[%clk 0:02:09.4]} 13. O-O-O {[%clk 0:02:23.2]} 13... c4 {[%clk 0:01:56.4]} 14.
e4 {[%clk 0:02:19.3]} 14... b5 {[%clk 0:01:49.1]} 15. exd5 {[%clk 0:02:15.6]}
15... exd5 {[%clk 0:01:50]} 16. Qe3+ {[%clk 0:02:09.9]} 16... Be7 {[%clk
0:01:49.2]} 17. Ng3 {[%clk 0:02:05.6]} 17... O-O {[%clk 0:01:44.8]} 18. Nf5
{[%clk 0:01:59.3]} 18... Bg5 {[%clk 0:01:37.5]} 19. Bxg5 {[%clk 0:01:59]} 19...
hxg5 {[%clk 0:01:31.1]} 20. Kb1 {[%clk 0:01:25.5]} 20... Re8 {[%clk 0:01:28.2]}
21. Qf2 {[%clk 0:01:20]} 21... Qd7 {[%clk 0:01:06.8]} 22. Qh2 {[%clk 0:01:03.9]}
22... Re6 {[%clk 0:01:03.4]} 23. f4 {[%clk 0:00:53.4]} 23... Rce8 {[%clk
0:00:23.1]} 24. h6 {[%clk 0:00:51.2]} 24... g6 {[%clk 0:00:21.9]} 25. Ng7 {[%clk
0:00:50.6]} 25... b4 {[%clk 0:00:19.8]} 26. Nxe6 {[%clk 0:00:29.2]} 26... bxc3
{[%clk 0:00:16.3]} 27. Nxg5 {[%clk 0:00:19.8]} 27... Qb7 {[%clk 0:00:13.7]} 28.
b3 {[%clk 0:00:19.9]} 28... Qb4 {[%clk 0:00:13.6]} 29. Qg3 {[%clk 0:00:12.4]}
29... Qa5 {[%clk 0:00:07.9]} 30. Nxh7 {[%clk 0:00:08.1]} 30... Nb4 {[%clk
0:00:06.9]} 31. Nf6+ {[%clk 0:00:07.1]} 31... Kh8 {[%clk 0:00:07]} 32. Qxc3
{[%clk 0:00:06.2]} 32... Qxa2+ {[%clk 0:00:05.4]} 33. Kc1 {[%clk 0:00:06.8]}
33... Re2 {[%clk 0:00:04.1]} 34. Rd2 {[%clk 0:00:04.1]} 34... Qa3+ {[%clk
0:00:04.1]} 35. Kd1 {[%clk 0:00:03.7]} 35... Rxd2+ {[%clk 0:00:02.5]} 36. Kxd2
{[%clk 0:00:04.4]} 36... Na2 {[%clk 0:00:01.8]} 37. Re1 {[%clk 0:00:03.9]} 37...
Qa5 {[%clk 0:00:01.3]} 38. Re8# {[%clk 0:00:03.4]} 1-0

[Event "*** Titled Tuesday Blitz"]
[Site "Chess.com"]
[Date "2021.03.30"]
[Round "5"]
[White "Reader777"]
[Black "crazyluzhinTh3"]
[Result "1/2-1/2"]
[WhiteElo "2712"]
[BlackElo "2521"]
[TimeControl "180+1"]
[EndTime "10:55:53 PDT"]
[Termination "Game drawn by repetition"]

1. d4 {[%clk 0:03:00.9]} 1... d6 {[%clk 0:03:00.5]} 2. Nf3 {[%clk 0:02:59.3]}
2... Bg4 {[%clk 0:03:00.5]} 3. e3 {[%clk 0:02:57.6]} 3... Nd7 {[%clk 0:03:00.4]}
4. h3 {[%clk 0:02:56.5]} 4... Bh5 {[%clk 0:03:00.1]} 5. Be2 {[%clk 0:02:54.8]}
5... Ngf6 {[%clk 0:03:00.3]} 6. O-O {[%clk 0:02:54.1]} 6... e5 {[%clk
0:02:59.2]} 7. c4 {[%clk 0:02:52.6]} 7... c6 {[%clk 0:02:59.4]} 8. Nc3 {[%clk
0:02:51.8]} 8... Be7 {[%clk 0:03:00]} 9. b3 {[%clk 0:02:50.3]} 9... O-O {[%clk
0:03:00]} 10. Bb2 {[%clk 0:02:50.4]} 10... Re8 {[%clk 0:03:00.2]} 11. dxe5
{[%clk 0:02:40.5]} 11... dxe5 {[%clk 0:03:01.1]} 12. Nh4 {[%clk 0:02:39.1]}
12... Bg6 {[%clk 0:02:57.6]} 13. Nxg6 {[%clk 0:02:37.9]} 13... hxg6 {[%clk
0:02:58.5]} 14. Qc2 {[%clk 0:02:37.6]} 14... Qc7 {[%clk 0:02:58.1]} 15. Rad1
{[%clk 0:02:37.1]} 15... a5 {[%clk 0:02:58]} 16. Ne4 {[%clk 0:02:34.7]} 16...
Nc5 {[%clk 0:02:50.9]} 17. Nxf6+ {[%clk 0:02:31.8]} 17... Bxf6 {[%clk
0:02:50.7]} 18. Ba3 {[%clk 0:02:27.5]} 18... Be7 {[%clk 0:02:46.3]} 19. Bb2
{[%clk 0:02:18.3]} 19... Bf6 {[%clk 0:02:38.1]} 20. Bc3 {[%clk 0:01:58.5]} 20...
e4 {[%clk 0:02:31.5]} 21. Bd4 {[%clk 0:01:48]} 21... Qe7 {[%clk 0:01:40.8]} 22.
Rd2 {[%clk 0:01:41.4]} 22... Na6 {[%clk 0:01:36.1]} 23. Rfd1 {[%clk 0:01:40.1]}
23... Nb4 {[%clk 0:01:35.6]} 24. Qb1 {[%clk 0:01:31.8]} 24... Rad8 {[%clk
0:01:27.4]} 25. a3 {[%clk 0:01:30]} 25... Bxd4 {[%clk 0:01:16.7]} 26. Rxd4
{[%clk 0:01:27.1]} 26... Rxd4 {[%clk 0:01:13.9]} 27. exd4 {[%clk 0:01:09.5]}
27... Na6 {[%clk 0:01:11.9]} 28. c5 {[%clk 0:00:49.5]} 28... Nc7 {[%clk
0:01:08.2]} 29. Bc4 {[%clk 0:00:48]} 29... Kf8 {[%clk 0:00:53.5]} 30. Re1 {[%clk
0:00:46.5]} 30... f5 {[%clk 0:00:47.5]} 31. Qc2 {[%clk 0:00:45.1]} 31... Rd8
{[%clk 0:00:47.4]} 32. Qc3 {[%clk 0:00:44.3]} 32... a4 {[%clk 0:00:34]} 33. bxa4
{[%clk 0:00:44.4]} 33... Qf6 {[%clk 0:00:33.6]} 34. Qa5 {[%clk 0:00:35.4]} 34...
Rd7 {[%clk 0:00:25.3]} 35. Rb1 {[%clk 0:00:22.4]} 35... Qxd4 {[%clk 0:00:17.7]}
36. Ba2 {[%clk 0:00:19.5]} 36... e3 {[%clk 0:00:15.8]} 37. fxe3 {[%clk
0:00:18.6]} 37... Qxe3+ {[%clk 0:00:16.7]} 38. Kh1 {[%clk 0:00:19]} 38... Nd5
{[%clk 0:00:16.6]} 39. Bxd5 {[%clk 0:00:12]} 39... cxd5 {[%clk 0:00:15.3]} 40.
Rxb7 {[%clk 0:00:05.4]} 40... Qc1+ {[%clk 0:00:12.9]} 41. Kh2 {[%clk 0:00:05.2]}
41... Qf4+ {[%clk 0:00:13.2]} 42. Kh1 {[%clk 0:00:05.6]} 42... Qc1+ {[%clk
0:00:12.9]} 43. Kh2 {[%clk 0:00:05.7]} 43... Qf4+ {[%clk 0:00:12.3]} 44. Kh1
{[%clk 0:00:05.4]} 44... Qf1+ {[%clk 0:00:11.3]} 45. Kh2 {[%clk 0:00:05.6]}
45... Qf4+ {[%clk 0:00:11.9]} 1/2-1/2

[Event "*** Titled Tuesday Blitz"]
[Site "Chess.com"]
[Date "2021.03.30"]
[Round "5"]
[White "Vaathi_Coming"]
[Black "VD_coach"]
[Result "1-0"]
[WhiteElo "2796"]
[BlackElo "2479"]
[TimeControl "180+1"]
[EndTime "10:55:53 PDT"]
[Termination "Vaathi_Coming won on time"]

1. c4 {[%clk 0:03:00.9]} 1... Nf6 {[%clk 0:02:04.5]} 2. Nc3 {[%clk 0:02:59]}
2... g6 {[%clk 0:01:54.7]} 3. g3 {[%clk 0:02:57.9]} 3... Bg7 {[%clk 0:01:55.6]}
4. Bg2 {[%clk 0:02:58.5]} 4... O-O {[%clk 0:01:55.6]} 5. e4 {[%clk 0:02:58.5]}
5... d6 {[%clk 0:01:55]} 6. Nge2 {[%clk 0:02:58.6]} 6... e5 {[%clk 0:01:54.1]}
7. d4 {[%clk 0:02:58.7]} 7... Nbd7 {[%clk 0:01:52.6]} 8. O-O {[%clk 0:02:58.7]}
8... c6 {[%clk 0:01:52.5]} 9. f4 {[%clk 0:02:56.6]} 9... exd4 {[%clk 0:01:50.4]}
10. Nxd4 {[%clk 0:02:55.2]} 10... Re8 {[%clk 0:01:50.8]} 11. Kh1 {[%clk
0:02:53.6]} 11... Nc5 {[%clk 0:01:50.4]} 12. Re1 {[%clk 0:02:35.2]} 12... Ng4
{[%clk 0:01:44]} 13. Re2 {[%clk 0:02:25.4]} 13... Qf6 {[%clk 0:01:28.6]} 14. Nb3
{[%clk 0:02:24.5]} 14... Nxb3 {[%clk 0:01:13.6]} 15. axb3 {[%clk 0:02:25.4]}
15... Qd4 {[%clk 0:01:12.7]} 16. Qe1 {[%clk 0:02:18.7]} 16... Qb6 {[%clk
0:01:04]} 17. h3 {[%clk 0:02:09.5]} 17... Nf6 {[%clk 0:00:59.5]} 18. Na4 {[%clk
0:01:46.5]} 18... Qxb3 {[%clk 0:00:50]} 19. Ra3 {[%clk 0:01:39.1]} 19... Qxc4
{[%clk 0:00:50]} 20. Nb6 {[%clk 0:01:35.9]} 20... axb6 {[%clk 0:00:43.3]} 21.
Rxa8 {[%clk 0:01:36.8]} 21... h5 {[%clk 0:00:39.3]} 22. f5 {[%clk 0:01:23.8]}
22... Kh7 {[%clk 0:00:34.4]} 23. Bf4 {[%clk 0:01:19.1]} 23... d5 {[%clk
0:00:30.8]} 24. e5 {[%clk 0:01:15.4]} 24... Ne4 {[%clk 0:00:27.7]} 25. f6 {[%clk
0:01:02.5]} 25... Bxf6 {[%clk 0:00:21.2]} 26. Bxe4 {[%clk 0:00:49.7]} 26... dxe4
{[%clk 0:00:13.6]} 27. exf6 {[%clk 0:00:49.8]} 27... e3 {[%clk 0:00:11.1]} 28.
Rxe3 {[%clk 0:00:34.1]} 28... Qd5+ {[%clk 0:00:07.4]} 29. Kh2 {[%clk 0:00:22.5]}
29... Bxh3 {[%clk 0:00:07.5]} 30. Kxh3 {[%clk 0:00:15.8]} 30... Rxa8 {[%clk
0:00:07.9]} 31. Re5 {[%clk 0:00:13.1]} 31... Qf3 {[%clk 0:00:07.1]} 32. Re7
{[%clk 0:00:10.9]} 32... g5 {[%clk 0:00:02.5]} 33. Rxf7+ {[%clk 0:00:09.6]}
33... Kh6 {[%clk 0:00:02.4]} 34. Bxg5+ {[%clk 0:00:05.2]} 34... Kxg5 {[%clk
0:00:02.4]} 35. Rg7+ {[%clk 0:00:03.4]} 1-0

[Event "*** Titled Tuesday Blitz"]
[Site "Chess.com"]
[Date "2021.03.30"]
[Round "5"]
[White "Abund"]
[Black "doctorcristian"]
[Result "1-0"]
[WhiteElo "2741"]
[BlackElo "2559"]
[TimeControl "180+1"]
[EndTime "10:55:56 PDT"]
[Termination "Abund won by checkmate"]

1. e4 {[%clk 0:03:00.9]} 1... c6 {[%clk 0:02:57.9]} 2. d4 {[%clk 0:03:00.7]}
2... d5 {[%clk 0:02:58.8]} 3. e5 {[%clk 0:03:00.8]} 3... Bf5 {[%clk 0:02:58.7]}
4. Nd2 {[%clk 0:03:01]} 4... e6 {[%clk 0:02:56.9]} 5. Nb3 {[%clk 0:03:01.1]}
5... a6 {[%clk 0:02:55.2]} 6. Nf3 {[%clk 0:03:00.9]} 6... h6 {[%clk 0:02:53.5]}
7. Be2 {[%clk 0:02:58]} 7... Nd7 {[%clk 0:02:50.8]} 8. O-O {[%clk 0:02:53.7]}
8... c5 {[%clk 0:02:51.2]} 9. Be3 {[%clk 0:02:45.5]} 9... c4 {[%clk 0:02:46.2]}
10. Nbd2 {[%clk 0:02:45.7]} 10... b5 {[%clk 0:02:46.4]} 11. c3 {[%clk
0:02:45.5]} 11... Ne7 {[%clk 0:02:46.1]} 12. Nh4 {[%clk 0:02:39.6]} 12... Bh7
{[%clk 0:02:43.7]} 13. f4 {[%clk 0:02:39.1]} 13... Nb6 {[%clk 0:02:39.2]} 14. b3
{[%clk 0:02:31.9]} 14... Nc6 {[%clk 0:02:33.2]} 15. Nhf3 {[%clk 0:02:05.6]}
15... Ba3 {[%clk 0:02:31.8]} 16. Qe1 {[%clk 0:01:41.7]} 16... Bb2 {[%clk
0:02:04.6]} 17. Qg3 {[%clk 0:01:32.7]} 17... O-O {[%clk 0:01:58.6]} 18. f5
{[%clk 0:01:29.1]} 18... Bxf5 {[%clk 0:01:54.6]} 19. Bxh6 {[%clk 0:01:28.3]}
19... Bg6 {[%clk 0:01:54.7]} 20. Bg5 {[%clk 0:01:25.6]} 20... Qe8 {[%clk
0:01:50.2]} 21. Nh4 {[%clk 0:01:12.8]} 21... Bxa1 {[%clk 0:01:44.5]} 22. Rxa1
{[%clk 0:01:12.4]} 22... b4 {[%clk 0:01:35.1]} 23. bxc4 {[%clk 0:01:05.9]} 23...
bxc3 {[%clk 0:01:33.8]} 24. Qxc3 {[%clk 0:01:05.2]} 24... dxc4 {[%clk
0:01:27.2]} 25. Nxc4 {[%clk 0:01:04.4]} 25... Nd5 {[%clk 0:01:27.4]} 26. Qd2
{[%clk 0:01:00.5]} 26... Ncb4 {[%clk 0:01:21.8]} 27. Nd6 {[%clk 0:00:57.5]}
27... Qa4 {[%clk 0:01:20.9]} 28. Nxg6 {[%clk 0:00:52.6]} 28... fxg6 {[%clk
0:01:19.7]} 29. Bg4 {[%clk 0:00:52.8]} 29... Rf5 {[%clk 0:01:10.4]} 30. Bxf5
{[%clk 0:00:52.2]} 30... gxf5 {[%clk 0:01:10.8]} 31. h3 {[%clk 0:00:40.5]} 31...
Qa3 {[%clk 0:00:55.4]} 32. Qe2 {[%clk 0:00:28.4]} 32... Qc3 {[%clk 0:00:37.9]}
33. Rd1 {[%clk 0:00:26.4]} 33... g6 {[%clk 0:00:33.1]} 34. Qf2 {[%clk 0:00:21]}
34... Qc2 {[%clk 0:00:28.5]} 35. Rd2 {[%clk 0:00:17.5]} 35... Qe4 {[%clk
0:00:16.9]} 36. Kh2 {[%clk 0:00:14.3]} 36... Qb1 {[%clk 0:00:14.3]} 37. Qh4
{[%clk 0:00:13.3]} 37... Ra7 {[%clk 0:00:14.7]} 38. Bf6 {[%clk 0:00:10.1]} 38...
Rh7 {[%clk 0:00:14.5]} 39. Qg5 {[%clk 0:00:09.5]} 39... f4 {[%clk 0:00:15.1]}
40. Qg4 {[%clk 0:00:06.1]} 40... Rh6 {[%clk 0:00:14.4]} 41. Qxe6+ {[%clk
0:00:06.2]} 41... Kh7 {[%clk 0:00:14.8]} 42. Qf7# {[%clk 0:00:06.2]} 1-0

[Event "*** Titled Tuesday Blitz"]
[Site "Chess.com"]
[Date "2021.03.30"]
[Round "5"]
[White "oogee"]
[Black "kubal123"]
[Result "1-0"]
[WhiteElo "2376"]
[BlackElo "2230"]
[TimeControl "180+1"]
[EndTime "10:55:56 PDT"]
[Termination "oogee won by resignation"]

1. d4 {[%clk 0:03:00.9]} 1... Nf6 {[%clk 0:02:57.4]} 2. c4 {[%clk 0:02:59.5]}
2... g6 {[%clk 0:02:56.5]} 3. Nc3 {[%clk 0:02:48.4]} 3... d5 {[%clk 0:02:56.8]}
4. Bd2 {[%clk 0:02:40.8]} 4... Bg7 {[%clk 0:02:54.4]} 5. cxd5 {[%clk 0:02:40]}
5... Nxd5 {[%clk 0:02:55.3]} 6. e4 {[%clk 0:02:39.9]} 6... Nxc3 {[%clk
0:02:50.9]} 7. Bxc3 {[%clk 0:02:39.9]} 7... O-O {[%clk 0:02:50.5]} 8. Bc4 {[%clk
0:02:31.6]} 8... c5 {[%clk 0:02:26.2]} 9. d5 {[%clk 0:02:30.2]} 9... Bxc3+
{[%clk 0:02:25.3]} 10. bxc3 {[%clk 0:02:28.9]} 10... Qa5 {[%clk 0:02:25.6]} 11.
Ne2 {[%clk 0:02:24.4]} 11... b6 {[%clk 0:01:41.6]} 12. O-O {[%clk 0:02:21.3]}
12... Nd7 {[%clk 0:01:41.9]} 13. f4 {[%clk 0:02:12.7]} 13... Ba6 {[%clk
0:01:25.9]} 14. Qd3 {[%clk 0:02:08.7]} 14... b5 {[%clk 0:01:23.4]} 15. Bb3
{[%clk 0:02:05.9]} 15... c4 {[%clk 0:01:23.5]} 16. Qd4 {[%clk 0:02:02]} 16...
cxb3 {[%clk 0:01:17.8]} 17. axb3 {[%clk 0:02:01.6]} 17... Qb6 {[%clk 0:01:18.3]}
18. Kh1 {[%clk 0:01:48.6]} 18... Bb7 {[%clk 0:01:13.9]} 19. Qd3 {[%clk 0:01:45]}
19... Nc5 {[%clk 0:01:12.9]} 20. Qb1 {[%clk 0:01:38.8]} 20... f5 {[%clk
0:01:03.9]} 21. exf5 {[%clk 0:01:33.7]} 21... Rxf5 {[%clk 0:01:04.8]} 22. Nd4
{[%clk 0:01:28.7]} 22... Rxd5 {[%clk 0:01:02.2]} 23. f5 {[%clk 0:01:28.9]} 23...
Rf8 {[%clk 0:00:46.6]} 24. Qc2 {[%clk 0:01:15]} 24... b4 {[%clk 0:00:38.8]} 25.
Rae1 {[%clk 0:01:05.4]} 25... bxc3 {[%clk 0:00:35.6]} 26. Qxc3 {[%clk
0:01:05.5]} 26... Qf6 {[%clk 0:00:27.5]} 27. Rf4 {[%clk 0:00:57]} 27... g5
{[%clk 0:00:25.4]} 28. Rg4 {[%clk 0:00:50.7]} 28... h5 {[%clk 0:00:25.2]} 29.
Rg3 {[%clk 0:00:50.6]} 29... Qxd4 {[%clk 0:00:19.5]} 30. Rxg5+ {[%clk
0:00:48.1]} 30... Kf7 {[%clk 0:00:19.8]} 31. Qf3 {[%clk 0:00:40.7]} 31... Rh8
{[%clk 0:00:14.2]} 32. f6 {[%clk 0:00:21.2]} 32... Re5 {[%clk 0:00:08.1]} 33.
Rg7+ {[%clk 0:00:19]} 33... Ke8 {[%clk 0:00:06.7]} 34. Rxe7+ {[%clk 0:00:17.9]}
34... Rxe7 {[%clk 0:00:06.8]} 35. Rxe7+ {[%clk 0:00:17.3]} 35... Kf8 {[%clk
0:00:07.3]} 36. Qf1 {[%clk 0:00:07.9]} 36... Qd5 {[%clk 0:00:06.7]} 37. Rg7
{[%clk 0:00:06.8]} 37... Nd3 {[%clk 0:00:05.1]} 38. Qe2 {[%clk 0:00:06]} 38...
Nf2+ {[%clk 0:00:04.3]} 39. Qxf2 {[%clk 0:00:06.4]} 39... Qd1+ {[%clk
0:00:04.2]} 40. Qg1 {[%clk 0:00:07]} 40... Qxg1+ {[%clk 0:00:05]} 41. Kxg1
{[%clk 0:00:07.5]} 41... Bd5 {[%clk 0:00:04.4]} 42. Rxa7 {[%clk 0:00:07.2]}
42... Bxb3 {[%clk 0:00:04.5]} 43. Ra8+ {[%clk 0:00:07.5]} 43... Kf7 {[%clk
0:00:04.9]} 44. Rxh8 {[%clk 0:00:08.1]} 44... Kxf6 {[%clk 0:00:05.8]} 45. Rxh5
{[%clk 0:00:08.2]} 45... Kg6 {[%clk 0:00:05.9]} 46. Rh3 {[%clk 0:00:08.7]} 46...
Kf6 {[%clk 0:00:06.8]} 47. Rxb3 {[%clk 0:00:08.6]} 47... Ke6 {[%clk 0:00:07.7]}
48. Rf3 {[%clk 0:00:08.8]} 48... Kd6 {[%clk 0:00:08.6]} 1-0

[Event "*** Titled Tuesday Blitz"]
[Site "Chess.com"]
[Date "2021.03.30"]
[Round "5"]
[White "alexrustemov"]
[Black "bait_or_mate"]
[Result "1-0"]
[WhiteElo "2728"]
[BlackElo "2530"]
[TimeControl "180+1"]
[EndTime "10:55:58 PDT"]
[Termination "alexrustemov won on time"]

1. d4 {[%clk 0:03:00.9]} 1... Nf6 {[%clk 0:02:59.6]} 2. c4 {[%clk 0:03:00.9]}
2... e6 {[%clk 0:02:58.8]} 3. Nf3 {[%clk 0:03:01.3]} 3... b6 {[%clk 0:02:58.3]}
4. a3 {[%clk 0:03:00.2]} 4... Bb7 {[%clk 0:02:58.5]} 5. Nc3 {[%clk 0:02:59.8]}
5... d5 {[%clk 0:02:58.4]} 6. Bg5 {[%clk 0:03:00.4]} 6... dxc4 {[%clk
0:02:51.5]} 7. e4 {[%clk 0:02:57.9]} 7... h6 {[%clk 0:02:45.2]} 8. Bxf6 {[%clk
0:02:56.6]} 8... Qxf6 {[%clk 0:02:46.1]} 9. Bxc4 {[%clk 0:02:56.9]} 9... Nd7
{[%clk 0:02:44.7]} 10. O-O {[%clk 0:02:43.7]} 10... Be7 {[%clk 0:02:29.6]} 11.
e5 {[%clk 0:02:32.4]} 11... Qf4 {[%clk 0:02:19.6]} 12. Qe2 {[%clk 0:02:07]}
12... O-O {[%clk 0:02:10.3]} 13. d5 {[%clk 0:02:06.3]} 13... exd5 {[%clk
0:01:40.6]} 14. Nxd5 {[%clk 0:02:05.7]} 14... Bxd5 {[%clk 0:01:30.5]} 15. Bxd5
{[%clk 0:02:06.6]} 15... Rad8 {[%clk 0:01:21.5]} 16. Rad1 {[%clk 0:02:00.1]}
16... Nc5 {[%clk 0:01:17.5]} 17. Rd4 {[%clk 0:01:55.3]} 17... Qf5 {[%clk
0:01:14.7]} 18. Rfd1 {[%clk 0:01:54.5]} 18... Ne6 {[%clk 0:01:11.5]} 19. R4d2
{[%clk 0:01:46.6]} 19... Nf4 {[%clk 0:01:07.1]} 20. Qe4 {[%clk 0:01:40.2]} 20...
Qxe4 {[%clk 0:00:55.2]} 21. Bxe4 {[%clk 0:01:41.1]} 21... Ne6 {[%clk 0:00:44.6]}
22. Rd7 {[%clk 0:01:29.5]} 22... Nc5 {[%clk 0:00:31]} 23. Rxd8 {[%clk
0:01:27.8]} 23... Rxd8 {[%clk 0:00:31.9]} 24. Rxd8+ {[%clk 0:01:27.5]} 24...
Bxd8 {[%clk 0:00:32.8]} 25. Bc2 {[%clk 0:01:27.7]} 25... Kf8 {[%clk 0:00:28.7]}
26. Nd4 {[%clk 0:01:15.5]} 26... Ne6 {[%clk 0:00:22.1]} 27. Nc6 {[%clk 0:01:12]}
27... a5 {[%clk 0:00:22.1]} 28. g3 {[%clk 0:01:11.1]} 28... Be7 {[%clk
0:00:21.4]} 29. Kf1 {[%clk 0:01:04.4]} 29... Bc5 {[%clk 0:00:18.1]} 30. b4
{[%clk 0:00:42.2]} 30... axb4 {[%clk 0:00:15.5]} 31. axb4 {[%clk 0:00:43.1]}
31... Nd4 {[%clk 0:00:14.6]} 32. bxc5 {[%clk 0:00:30.5]} 32... Nxc6 {[%clk
0:00:13.3]} 33. cxb6 {[%clk 0:00:27.9]} 33... cxb6 {[%clk 0:00:14.2]} 34. f4
{[%clk 0:00:27.6]} 34... Ke7 {[%clk 0:00:13.2]} 35. Kf2 {[%clk 0:00:27.5]} 35...
f6 {[%clk 0:00:12.2]} 36. exf6+ {[%clk 0:00:24.4]} 36... Kxf6 {[%clk 0:00:13.1]}
37. Ke3 {[%clk 0:00:24.5]} 37... g6 {[%clk 0:00:06.6]} 38. h4 {[%clk 0:00:21.7]}
38... h5 {[%clk 0:00:04.8]} 39. Be4 {[%clk 0:00:19.5]} 39... Ne7 {[%clk
0:00:04.4]} 40. Bd3 {[%clk 0:00:18.8]} 40... Nf5+ {[%clk 0:00:03.8]} 41. Kf3
{[%clk 0:00:19.1]} 41... Nd4+ {[%clk 0:00:04.1]} 42. Ke3 {[%clk 0:00:17.6]}
42... Ne6 {[%clk 0:00:03.5]} 43. f5 {[%clk 0:00:15.9]} 43... gxf5 {[%clk
0:00:03.2]} 44. Be2 {[%clk 0:00:16.5]} 44... Kg6 {[%clk 0:00:02.1]} 45. Bc4
{[%clk 0:00:15.3]} 1-0

[Event "*** Titled Tuesday Blitz"]
[Site "Chess.com"]
[Date "2021.03.30"]
[Round "5"]
[White "skeyman"]
[Black "PavelChernomordik"]
[Result "0-1"]
[WhiteElo "2224"]
[BlackElo "2373"]
[TimeControl "180+1"]
[EndTime "10:55:58 PDT"]
[Termination "PavelChernomordik won by resignation"]

1. Nf3 {[%clk 0:01:31.9]} 1... g6 {[%clk 0:02:55]} 2. c4 {[%clk 0:01:28.8]} 2...
Bg7 {[%clk 0:02:54.6]} 3. Nc3 {[%clk 0:01:27.5]} 3... d6 {[%clk 0:02:54.5]} 4.
b3 {[%clk 0:01:26.8]} 4... e5 {[%clk 0:02:51.9]} 5. d3 {[%clk 0:01:26.1]} 5...
f5 {[%clk 0:02:50]} 6. Bb2 {[%clk 0:01:26]} 6... Nf6 {[%clk 0:02:44.5]} 7. h4
{[%clk 0:01:24.5]} 7... c5 {[%clk 0:02:43.3]} 8. Qc2 {[%clk 0:01:24.2]} 8... Nc6
{[%clk 0:02:41.6]} 9. a3 {[%clk 0:01:23.9]} 9... O-O {[%clk 0:02:38.5]} 10. Rd1
{[%clk 0:01:20]} 10... Re8 {[%clk 0:02:34.6]} 11. e3 {[%clk 0:01:19.6]} 11... h6
{[%clk 0:02:30.8]} 12. Be2 {[%clk 0:01:19.8]} 12... Be6 {[%clk 0:02:28.7]} 13.
O-O {[%clk 0:01:18]} 13... Ng4 {[%clk 0:02:25]} 14. Nd5 {[%clk 0:01:15.1]} 14...
Bxd5 {[%clk 0:02:19.5]} 15. cxd5 {[%clk 0:01:15]} 15... Ne7 {[%clk 0:02:19.7]}
16. e4 {[%clk 0:01:15.3]} 16... f4 {[%clk 0:02:19.1]} 17. b4 {[%clk 0:01:13.3]}
17... b6 {[%clk 0:02:18]} 18. Nd4 {[%clk 0:00:54.9]} 18... exd4 {[%clk
0:02:02.8]} 19. Bxg4 {[%clk 0:00:54.5]} 19... Be5 {[%clk 0:02:01.9]} 20. h5
{[%clk 0:00:53.5]} 20... Kh7 {[%clk 0:01:57.9]} 21. hxg6+ {[%clk 0:00:52.5]}
21... Nxg6 {[%clk 0:01:57.6]} 22. f3 {[%clk 0:00:52.1]} 22... Qg5 {[%clk
0:01:54.7]} 23. Kf2 {[%clk 0:00:51.7]} 23... Kg7 {[%clk 0:01:49.2]} 24. Rh1
{[%clk 0:00:51.3]} 24... Qe7 {[%clk 0:01:39.1]} 25. Rh5 {[%clk 0:00:50.7]} 25...
Bf6 {[%clk 0:01:37.8]} 26. Rdh1 {[%clk 0:00:50]} 26... Bg5 {[%clk 0:01:37.4]}
27. Qc4 {[%clk 0:00:41.2]} 27... Ne5 {[%clk 0:01:36.5]} 28. Qa6 {[%clk
0:00:37.1]} 28... Nxg4+ {[%clk 0:01:28.6]} 29. fxg4 {[%clk 0:00:36.4]} 29... Qd7
{[%clk 0:01:27.5]} 30. Kf3 {[%clk 0:00:35.8]} 30... Rg8 {[%clk 0:01:16.8]} 31.
Bc1 {[%clk 0:00:35.6]} 31... Kg6 {[%clk 0:01:11]} 32. Bxf4 {[%clk 0:00:30.4]}
32... Raf8 {[%clk 0:01:09.9]} 33. g3 {[%clk 0:00:30.4]} 33... Qf7 {[%clk
0:01:03.4]} 34. Rxh6+ {[%clk 0:00:26.8]} 34... Bxh6 {[%clk 0:01:02.1]} 35. Rxh6+
{[%clk 0:00:26.9]} 35... Kg7 {[%clk 0:01:01.2]} 36. Rxd6 {[%clk 0:00:19.6]}
36... Rh8 {[%clk 0:00:55.4]} 37. Qb5 {[%clk 0:00:19.5]} 37... Rd8 {[%clk
0:00:53]} 38. Qc6 {[%clk 0:00:18.1]} 38... Rxd6 {[%clk 0:00:46.1]} 39. Qxd6
{[%clk 0:00:19]} 39... Re8 {[%clk 0:00:37.6]} 40. g5 {[%clk 0:00:17.2]} 40... c4
{[%clk 0:00:31.6]} 41. dxc4 {[%clk 0:00:14.7]} 41... Qh5+ {[%clk 0:00:30]} 42.
Kg2 {[%clk 0:00:14.1]} 42... Qe2+ {[%clk 0:00:25.8]} 43. Kg1 {[%clk 0:00:13.6]}
43... Qxe4 {[%clk 0:00:23.3]} 44. Qf6+ {[%clk 0:00:11.6]} 44... Kg8 {[%clk
0:00:22.5]} 45. Qg6+ {[%clk 0:00:11.1]} 45... Qxg6 {[%clk 0:00:21.6]} 0-1